Cogmind - Beta 16 @@@ ROGUE MODE // 2025.12.17 @ 21:49:33 Player: MrProgressor Result: Destroyed by as-83638 with Assembled Blade Performance ------------- Evolutions (1) 500 Regions Visited (3) 600 Robots Destroyed (31) 155 Value Destroyed (787) 787 Prototype IDs (4) 80 Alien Tech Used (0) 0 Bonus (0) 0 TOTAL SCORE: 2122 Bonus ------- None Cogmind --------- Core Integrity 0/400 Matter 280/300 Energy 246/250 System Corruption 0% Temperature Cool (0) Movement Treading (240) Ox1 Location -9/Mines Parts ------- > --- POWER (1) -------- Ion Engine > --- PROPULSION (2) --- Light Treads > --- UTILITY (4) ------ Large Storage Unit Visual Processing Unit Signal Interpreter Improved Medium Armor Plating > --- WEAPON (2) ------- Maul Mining Claw > --- INVENTORY (15) --- Light Nuclear Core Improved Heat Sink High-capacity Battery (250) ECM Suite Hardened Heavy Armor Plating Improved Trap Extractor (0/6) Small Laser Particle Gun Assault Rifle Heavy Assault Rifle Mining Laser Mining Claw Peak State ------------ > --- POWER ------------ Light Nuclear Core > --- PROPULSION ------- Light Treads Wheel > --- UTILITY ---------- Large Storage Unit Visual Processing Unit Signal Interpreter Improved Trap Extractor > --- WEAPON ----------- Maul Mining Claw > --- INVENTORY -------- Ion Engine Light Nuclear Core Light Treads Improved Heat Sink High-capacity Battery ECM Suite Hardened Heavy Armor Plating Improved Medium Armor Plating Small Laser Particle Gun Assault Rifle Heavy Assault Rifle Mining Laser Mining Claw [Rating: 19] Favorites ----------- Power Ion Engine Engine Ion Engine Power Core Light Nuclear Core Propulsion Wheel Treads Light Treads Wheel Wheel Utility Large Storage Unit Device Improved Terrain Scanner Storage Large Storage Unit Processor Signal Interpreter Protection Light Armor Plating Weapon Small Laser Energy Gun Small Laser Ballistic Gun Assault Rifle Special Weapon Mining Laser Impact Weapon Maul Slashing Weapon Mining Claw Build | -11 -10 -9 -9 ------- Run | Yrd Mat Mat Min Slots Evolved 2 | . . 2 . Power . | . . . . Propulsion . | . . . . Utility 2 | . . 2 . Weapon . | . . . . Parts Attached 29 | 7 7 9 6 Power 6 | 1 1 2 2 Engine 5 | 1 1 2 1 Core 1 | . . . 1 Reactor . | . . . . Propulsion 7 | 2 3 1 1 Treads 2 | . 1 1 . Leg . | . . . . Wheel 5 | 2 2 . 1 Hover . | . . . . Flight . | . . . . Utility 10 | 2 2 4 2 Device 4 | 1 1 1 1 Storage 2 | 1 1 . . Processor 2 | . . 2 . Hackware . | . . . . Protection 2 | . . 1 1 Artifact . | . . . . Weapon 6 | 2 1 2 1 Energy Gun 1 | 1 . . . Energy Cannon . | . . . . Ballistic Gun 1 | 1 . . . Ballistic Cannon . | . . . . Launcher . | . . . . Special Weapon 1 | . 1 . . Impact Weapon 1 | . . 1 . Slashing Weapon 2 | . . 1 1 Piercing Weapon . | . . . . Special Melee Weapon . | . . . . Unidentified Prototypes 1 | . . 1 . Parts Lost 12 | . . 3 9 Power 2 | . . . 2 Propulsion 5 | . . 1 4 Utility 3 | . . 1 2 Weapon 2 | . . 1 1 Highest Loss Streak 4 | . . 2 4 To Critical Strikes 1 | . . 1 . Average Backups 10 | 2 8 12 12 Power 1 | . 1 2 1 Propulsion 2 | 1 3 2 . Utility 3 | . 2 4 4 Weapon 3 | . 1 3 5 Tool/Special . | . . . . Unused Backups 11 | . 2 . 9 Power 1 | . . . 1 Propulsion 1 | . 1 . . Utility 5 | . 1 . 4 Weapon 4 | . . . 4 Tool/Special . | . . . . Average Slot Usage (%) 95 | . 100 97 89 Engine 10 | . 14 10 6 Core 1 | . . . 3 Treads 5 | . 1 6 7 Wheel 16 | . 26 15 7 Device 11 | . 14 10 9 Storage 11 | . 14 11 11 Processor 12 | . . 14 22 Protection 2 | . . 5 1 Energy Gun 7 | . 12 9 . Ballistic Gun 5 | . 14 2 . Impact Weapon 6 | . . 7 11 Slashing Weapon 3 | . . 1 8 Peak Build Rating 19 | 9 10 14 19 Average Rating 12 | 6 9 12 15 On Entrance 8 | . 9 10 14 Avg Prop Armor Cover (%) 13 | . 5 6 16 Naked Turns . | . . . . Heaviest Build 37 | 14 29 35 37 Greatest Support 40 | 20 26 40 20 Greatest Overweight (x) 3 | . 1 1 3 Average Overweight (x) . | . . . 1 Largest Inventory Capacity 15 | 8 15 15 15 Average Capacity 13 | 7 10 15 15 Most Carried 15 | 7 12 15 15 Average Carried 10 | 2 8 12 13 Final Capacity 15 | 8 15 15 15 Final Carried 15 | 7 12 15 13 Class Distribution -------------------- 56% | Mutant 28% | Scavenger-Mutant 8% | Skirmisher 6% | Assassin Dominant Class ---------------- Mutant | -10/Materials Scavenger-Mutant | -9/Materials Mutant | -9/Mines Resources | -11 -10 -9 -9 ----------- Run | Yrd Mat Mat Min Matter Collected 698 | 303 137 188 70 Remotely . | . . . . Salvage Created 1134 | 133 248 624 129 Parts 52 | 6 11 27 8 Haulers Intercepted 3 | . 1 2 . Recyclers Shooed . | . . . . Parts Field Recycled . | . . . . Retrieved Matter . | . . . . Parts Self-Destructed . | . . . . Prevented . | . . . . Parts Restored . | . . . . Kills | -11 -10 -9 -9 ------- Run | Yrd Mat Mat Min Combat Hostiles Destroyed 20 | . 3 11 6 Melee 11 | . . 6 5 Guns 6 | . 3 3 . Classes Destroyed 8 | 2 3 1 2 Tunneler 4 | 2 . 2 . Hauler 3 | . 1 2 . Recycler 2 | 1 1 . . Watcher 2 | . 1 1 . Swarmer 3 | . . . 3 Grunt 13 | . 3 8 2 Sentry 3 | . . 3 . Demolisher 1 | . . . 1 Best Kill Streak 4 | 1 2 4 2 Combat Bots Only 4 | . 2 4 2 Max Kills in Single Turn 1 | 1 1 1 1 Gunslinging . | . . . . Exploded . | . . . . Melee 1 | . . 1 1 Uniques/NPCs Destroyed . | . . . . Combat | -11 -10 -9 -9 -------- Run | Yrd Mat Mat Min Hostile Shots Fired 126 | . 14 55 57 Missed 28 | . 2 16 10 Hits 98 | . 12 39 47 Melee 3 | . . . 3 Projectile 95 | . 12 39 44 AOE 13 | . . . 13 Critical Strikes 3 | . 1 1 1 Damage Taken 1623 | . 161 477 985 Core 428 | . 27 55 346 Absorbed by Shields . | . . . . Core Remaining (%) 94 | 100 89 . . Volleys Fired 45 | 11 20 14 . Largest 2 | 2 2 2 . Hottest 100 | 60 100 60 . Shots Fired 85 | 21 39 25 . Gun 84 | 21 38 25 . Cannon . | . . . . Launcher . | . . . . Special 1 | . 1 . . Kinetic 41 | 11 19 11 . Thermal 44 | 10 20 14 . Explosive . | . . . . Electromagnetic . | . . . . Robot Hit Streak 20 | 9 8 20 . Robot Miss Streak 2 | 1 2 . . Penetration Max . | . . . . Secondary Targets . | . . . . Shots Hit Robots 98 | 17 25 40 16 Core Hits 32 | 3 13 11 5 Critical Kills 2 | . . . 2 Critical Parts Destroyed 7 | . . 6 1 Critical Strikes 9 | . . 6 3 Smash 9 | . . 6 3 Melee Attacks 50 | . . 25 25 Impact 30 | . . 22 8 Slashing 20 | . . 3 17 Piercing . | . . . . Sneak Attacks 6 | . . 6 . Combat Hostiles 1 | . . 1 . Follow-up Attacks 5 | . . . 5 Damage Inflicted 2162 | 203 302 1233 424 Guns 726 | 203 302 221 . Cannons . | . . . . Explosions . | . . . . Melee 1436 | . . 1012 424 Ramming . | . . . . Kinetic 376 | 112 166 98 . Thermal 350 | 91 136 123 . Explosive . | . . . . Electromagnetic . | . . . . Impact 1120 | . . 942 178 Slashing 316 | . . 70 246 Piercing . | . . . . Highest Corruption . | . . . . Average Corruption . | . . . . Corruption Purged . | . . . . Corruption Blocked . | . . . . Overload Shots . | . . . . Overflow Damage 478 | . . 428 50 Projectiles . | . . . . Explosions . | . . . . Melee 478 | . . 428 50 Knockbacks 4 | . . 4 . Impact 4 | . . 4 . Kinetic . | . . . . Secondary . | . . . . Self-Inflicted Damage . | . . . . Shots . | . . . . Rammed . | . . . . Targets Rammed . | . . . . Kicked . | . . . . Crushed . | . . . . Highest Temperature 349 | . 45 349 . Average Temperature 53 | . 18 95 . Received Heat Transfer 378 | . 111 234 33 Siege Activations . | . . . . Martial Activations . | . . . . Shielding Activations . | . . . . Robots Disrupted . | . . . . Combat Hostiles . | . . . . Robots Corrupted 6 | . . 5 1 Combat Hostiles 3 | . . 2 1 Parts Fried 7 | . . 7 . Impact Corruptions 16 | . . 14 2 Robots Melted . | . . . . Combat Hostiles . | . . . . Parts Melted . | . . . . Heat Transferred 775 | 200 300 275 . Parts Sabotaged . | . . . . Parts Stolen . | . . . . Parts Stripped . | . . . . Power Chain Reactions . | . . . . Alert | -11 -10 -9 -9 ------- Run | Yrd Mat Mat Min Maximum Alert Level . | . . . . Low Security (%) 100 | 100 100 100 100 Level 1 . | . . . . Level 2 . | . . . . Level 3 . | . . . . Level 4 . | . . . . Level 5 . | . . . . High Security . | . . . . Max Security . | . . . . Peak Influence 163 | 5 40 163 55 Initial 46 | . . 3 46 Average 37 | 1 9 89 17 Influence Increases 704 | 15 152 352 185 Destroy 0b10 Robot/C 400 | . 60 220 120 Destroy 0b10 Robot/NC 55 | 15 15 25 . Destroy Leader 100 | . 14 66 20 Successful Hack 42 | . 18 24 . Disable Machine 15 | . 15 . . Destroy Structure 2 | . . 2 . Lose Combat Pursuer 90 | . 30 15 45 Influence Decreases 704 | 15 144 241 304 Entered New Map 78 | . . 5 73 Time Decay 520 | 15 144 206 155 Lost Part 106 | . . 30 76 Squads Dispatched 4 | . 1 3 . Investigation 3 | . 1 2 . Extermination . | . . . . Reinforcement 1 | . . 1 . Assault . | . . . . Garrison . | . . . . Intercept . | . . . . Searches Triggered . | . . . . Construction Impeded . | . . . . Haulers Reinforced . | . . . . Active Scanning Responses . | . . . . Cargo Convoy Interrupts . | . . . . Stealth | -11 -10 -9 -9 --------- Run | Yrd Mat Mat Min Distress Signals 1 | . 1 . . Communications Jammed . | . . . . Distress Signals . | . . . . Times Spotted 45 | . 7 18 20 Peak Tracking Total 12 | . 3 4 12 Tactical Retreats 5 | . 2 1 2 Traps | -11 -10 -9 -9 ------- Run | Yrd Mat Mat Min Traps Triggered 4 | . 1 1 2 Indirectly . | . . . . Trap Hack Attempts . | . . . . Triggered . | . . . . Disarmed . | . . . . Reprogrammed . | . . . . Reused . | . . . . Traps Extracted . | . . . . Installed . | . . . . Triggered . | . . . . Machines | -11 -10 -9 -9 ---------- Run | Yrd Mat Mat Min Machines Disabled 1 | . 1 . . Max in Single Turn 1 | . 1 . . Machines Repaired . | . . . . Machines Dismantled . | . . . . Machines Sabotaged . | . . . . Overloaded Fab Kills . | . . . . Hacking | -11 -10 -9 -9 --------- Run | Yrd Mat Mat Min Machines Accessed 11 | . 5 5 1 Terminals 8 | . 5 3 . Fabricators . | . . . . Repair Stations . | . . . . Recycling Units . | . . . . Scanalyzers 2 | . . 2 . Garrison Access . | . . . . Total Hacks 35 | . 17 17 1 Successful 15 | . 5 9 1 Failed 19 | . 12 7 . Catastrophic 3 | . 2 1 . Database Lockouts 1 | . . 1 . Manual 4 | . 4 . . Terminals 29 | . 17 12 . Fabricators . | . . . . Repair Stations . | . . . . Recycling Units . | . . . . Scanalyzers 5 | . . 5 . Garrison Access . | . . . . Terminal Hacks 13 | . 5 7 1 Robot Analysis 2 | . 2 . . Prototype ID Bank 2 | . 1 1 . Open Door 1 | . . . 1 Level Access Points 1 | . . 1 . Branch Access Points 1 | . 1 . . Terminal Index 1 | . . 1 . Locate Traps 2 | . 1 1 . Recall Investigation 1 | . . 1 . Registered Components 1 | . . 1 . Zone Layout 1 | . . 1 . Fabricator Hacks . | . . . . Repair Station Hacks . | . . . . Recycling Unit Hacks . | . . . . Scanalyzer 2 | . . 2 . Retrieve Study 2 | . . 2 . Garrison Access Hacks . | . . . . Unauthorized Hacks . | . . . . Terminals . | . . . . Fabricators . | . . . . Repair Stations . | . . . . Recycling Units . | . . . . Scanalyzers . | . . . . Garrison Access . | . . . . Data Cores Recovered . | . . . . Used . | . . . . Hacking Detections 9 | . 5 4 . Full Trace Events 1 | . . 1 . Feedback Events . | . . . . Feedback Blocked . | . . . . Robot Schematics Acquired . | . . . . Robots Built . | . . . . Authchips . | . . . . Time . | . . . . Total Robot Build Rating . | . . . . Part Schematics Acquired . | . . . . Parts Built . | . . . . Authchips . | . . . . Time . | . . . . Total Part Build Rating . | . . . . Part Studies Acquired 2 | . . 2 . Parts Repaired . | . . . . Time . | . . . . Parts Recycled . | . . . . Recycled Matter . | . . . . Retrieved Matter . | . . . . Retrieved Components . | . . . . Parts Scanalyzed . | . . . . Part Schematics Acquired . | . . . . Parts Damaged . | . . . . Bothacking | -11 -10 -9 -9 ------------ Run | Yrd Mat Mat Min Used RIF Installer . | . . . . Robots Hacked . | . . . . Non-combat . | . . . . Combat . | . . . . Robot Hacks Applied . | . . . . Relay Couplers Released . | . . . . Fabnet Peak Effective % . | . . . . Robots Rewired . | . . . . Allies Hacked . | . . . . Hacks Repelled . | . . . . Allies | -11 -10 -9 -9 -------- Run | Yrd Mat Mat Min Total Allies . | . . . . Largest Group . | . . . . Highest-Rated Group . | . . . . Highest-Rated Ally . | . . . . Total Orders . | . . . . Ally Attacks . | . . . . Total Damage . | . . . . Kills . | . . . . Allies Corrupted . | . . . . Allies Melted . | . . . . Intel | -11 -10 -9 -9 ------- Run | Yrd Mat Mat Min Active Infowar (turns) 1457 | 30 472 502 453 Optics 652 | . . 199 453 Sensors 231 | . . 211 20 Terrain 805 | 30 472 303 . Robot Analysis Total 2 | . 2 . . Derelict Logs Recovered 1 | . . . 1 Drone Launches . | . . . . Drone Recoveries . | . . . . Exploration | -11 -10 -9 -9 ------------- Run | Yrd Mat Mat Min Turns Passed 1579 | 123 472 531 453 Spaces Moved 988 | 88 406 257 237 Core 3 | 3 . . . Treads 153 | . 4 65 84 Legs . | . . . . Wheels 832 | 85 402 192 153 Hover . | . . . . Flight . | . . . . Fastest Speed 50 | 50 80 95 95 Average Speed 109 | 78 87 113 152 Slowest Speed 240 | 80 160 240 240 Overloaded Moves . | . . . . Propulsion Burnouts . | . . . . Robots Hopped . | . . . . Potential Cave-ins . | . . . . Cave-ins Triggered . | . . . . Exploration Rate (%) 33 | 6 57 31 40 Regions Visited 3 Branch Regions 1 Pre-discovered Areas . | . . . . Known Exits Taken 1 | . . 1 . Unknown Exits Taken 2 | 1 1 . . Scrap Searched . | . . . . Spaces Dug 2 | . . 2 . Terrain Destroyed 2 | . . 2 . Melee 2 | . . 2 . Projectile . | . . . . AOE . | . . . . Terrain Rammed . | . . . . Walls Destroyed . | . . . . Machines Disabled . | . . . . Actions | -11 -10 -9 -9 --------- Run | Yrd Mat Mat Min Total 1302 | 116 480 417 289 Wait 145 | 4 31 91 19 Move 985 | 87 405 256 237 Hop . | . . . . Pick Up 29 | 7 9 9 4 Fast Attach 10 | 7 . 2 1 Attach 14 | . . 6 8 Detach 1 | . . 1 . Swap 18 | . 8 9 1 Drop 11 | . 7 4 . Fire 45 | 11 20 14 . Melee 44 | . . 25 19 Ram . | . . . . Kick . | . . . . Crush . | . . . . Escape Stasis . | . . . . Rewire . | . . . . Trap . | . . . . Miscellaneous . | . . . . Route ------- -11/Scrapyard -10/Materials (discovered 3 exits: *Mat / *Min x2) -9/Materials (discovered 4 exits: Mat x3 / *Min) -9/Mines (discovered 1 exit: *Mat) History --------- Turn | Location | Event 12 | -11/Scrapyard | Discovered new exit (range 14) 124 | -11/Scrapyard | Entered Materials 124 | -10/Materials | Discovered new exit (range 7) 134 | -10/Materials | Identified exit to Mines 348 | -10/Materials | Build established: Mutant 355 | -10/Materials | Discovered new exit (range 8) 596 | -10/Materials | Entered another Materials area 596 | -9/Materials | Evolved 2 slots: Utility x2 696 | -9/Materials | Central database locked down 982 | -9/Materials | Discovered new exit (range 9) 996 | -9/Materials | Identified exit to Mines 1053 | -9/Materials | Identified exit to Materials 1127 | -9/Materials | Entered Mines 1128 | -9/Mines | Assembled infested the area 1149 | -9/Mines | Met a Derelict bent on vengeance 1164 | -9/Mines | Learned location of 1 exit from Lower Caves 1178 | -9/Mines | Lost 4 parts (1p1n1u1w) 1182 | -9/Mines | Met a Derelict who couldn't figure out how to use a Trap Extractor 1325 | -9/Mines | Core integrity fell below 50% 1357 | -9/Mines | Lost 3 parts (1p2n) 1380 | -9/Mines | Discovered exit to Materials (range 8) 1406 | -9/Mines | Core integrity fell below 20% 1580 | -9/Mines | Destroyed by as-83638 with Assembled Blade Last Messages --------------- 01400_ K-01 Serf collects debris. 01416_ Maul+ follow-up attack on S-10 Pest. 01416_ S-10 Pest destroyed. 01423_ Mining Claw follow-up attack on S-10 Pest. 01425_ K-01 Serf collects debris. 01426_ Destroyed Flight Unit. 01426_ S-10 Pest system corrupted by crushing effect. 01426_ S-10 Pest destroyed. 01451_ K-01 Serf collects debris. 01483_ K-01 Serf cleans the Laser Drill. 01487_ K-01 Serf collects debris. 01488_ K-01 Serf cleans the Laser Drill. 01493_ K-01 Serf collects debris. 01495_ U-05 Engineer lays Concrete. 01499_ K-01 Serf collects debris. 01548_ as-83638 sneak attacks. 01555_ U-05 Engineer builds a Wall. 01571_ U-05 Engineer destroyed. 01578_ Imp. Medium Armor Plating severed. 01578_ Acquired Imp. Medium Armor Plating. Map ----- +----------------------------------------------------+ | | | | | ??????????????????????????????????????? | | ??????????????????????????????????????? | | ???????????????????????????????##?????? | | ??????????????????????????????? #?????? | | ?????????????????????????????? #?????? | | ????????????????????###### < #?????? | | ????????????????????#=%=** #?????? | | ????????????????????#%#### #?????? | | ????????????????????#[#????? #?????? | | ????????????????????# #????? ???????? | | ????????????????????# #???? #????????? | | ????????????????????# ##### #????????? | | ???????????????????## ## #????????? | | ???????????????????# ####????????? | | ???????????????????# #???????????? | | ???????????????????# #####???????????? | | ??####??????????####t ######??????????? | | ### ##?????????# # %## #??????????? | | ##????????# k # #??????????? | | ## ##???????## #?????####?? | | ?# ########## #???### ##? | | ## ## # # """ ##?## #? | | # # """ ### ##? | | " # # ## """@ #?? | | " # *%!a ##?? | | "" = = #??? | | # ##### ##?? | | ##### ## ## ##???## #?? | | ????## # ## ####?????# #?? | | ?????## # ## ##????????## ##?? | | ??????## # #######??????????#####??? | | ???????### ????????????????????? | | ????????? ????????????????????? | | ????????# #???????????????????? | | ????????# #???????????????????? | | ????????## ???????????????????? | | ?????????## ### ??????????????????? | | ??????????#! ### ?????????????????? | | ??????????# ???# #????????????????? | | ??????????#% ????# #????????????????? | | ?????????? #?????? ??????????????????? | | ?????????? #?????????????????????????? | | ??????????# ??????????????????????????? | | ??????????? ??????????????????????????? | | ??????????????????????????????????????? | | ??????????????????????????????????????? | | ??????????????????????????????????????? | | ??????????????????????????????????????? | +----------------------------------------------------+ Best States ------------- Heat Dissipation 28 Energy Generation 14 Energy Capacity 265 Matter Stores 300 Matter Capacity 300 Sight Range 18 Robot Scan Range 14 Terrain Scan Range 16 Terrain Scan Density 10 Armor Coverage 225 Evasion (%) 44 Recoil Reduction 2 Trap Extractor Capacity 6 Item Schematics ----------------- None Robot Schematics ------------------ None Fabricated ------------ Nothing Repaired ---------- Nothing Studied --------- Com. Wheel | -9/Materials | Hacked Maul | -9/Materials | Hacked Alien Tech Used ----------------- None Achievements -------------- None Challenges ------------ None Game ------ Seed NeutronResetFocus Manual? 0 Play Time 00:36:52 Cumulative 228.3 hours Start 2025.12.17 @ 20:57:03 End 2025.12.17 @ 21:49:33 Sessions 1 Manual Loads 0 Difficulty Rogue Special Mode None Game No. 73 Rogue 73 Adventurer 0 Explorer 0 Win Type - Total 2 Types 2/0/0/0/0/0/0/0/0/0 Lore% 46 Gallery% 59 Achievement% 38 Wizard Run 0 Options --------- Layout 0 ASCII 0 Keyboard 0 Movement Numpad Keybinds 1 Fullscreen 2 Font 18/SmallcapsGlow Map View 76x50 Zoom Use 0% Tactical HUD 1 Map Filters NONE Filters NONE Steam 1 RUN: a17402f3-2671-431e-9423-7ac5ba74d17d